fUSD/lending_fUSD_20250524
["ID","MTS","AMOUNT","RATE_DAILY","PERIOD"]
[362249142,1748118663945,-420.0,0.00019452,2]
[362249143,1748118663956,-420.0,0.00019452,2]
[362249144,1748118663966,-420.0,0.00019452,2]
[362249145,1748118663975,-420.0,0.00019452,2]
[362249146,1748118663985,-420.0,0.00019452,2]
[362249147,1748118663994,-454.5,0.00019452,2]
[362249148,1748118664004,-936.99,0.00019452,2]
[362249149,1748118664014,-1509.91,0.00019452,2]
[362249150,1748118664024,-420.0,0.00019452,2]
[362249151,1748118664033,-420.0,0.00019452,2]
[362249152,1748118664043,-603.47,0.00019452,2]
[362249153,1748118664052,-2982.6,0.00019452,2]
[362249154,1748118664062,-1068.59,0.00019452,2]
[362249155,1748118664071,-420.0,0.00019452,2]
[362249156,1748118664081,-8772.85,0.00019452,2]
[362249157,1748118664091,-2313.94,0.00019452,2]
[362249158,1748118664100,-472.48,0.00019452,2]
[362249159,1748118664110,-462.18,0.00019452,2]
[362249160,1748118664120,-547.04,0.00019452,2]
[362249161,1748118664130,-352.44190781,0.00019452,2]
[362249162,1748118664139,-435.014358,0.00019452,2]
[362249163,1748118664149,-420.0,0.00019452,2]
[362249164,1748118664158,-530.53,0.00019452,2]
[362249165,1748118664168,-420.0,0.00019452,2]
[362249166,1748118664177,-846.2,0.00019452,2]
[362249167,1748118664186,-420.0,0.00019452,2]
[362249168,1748118664197,-726.09,0.00019452,2]
[362249169,1748118664207,-420.0,0.00019452,2]
[362249170,1748118664217,-1756.89,0.00019452,2]
[362249171,1748118664226,-237.49,0.00019479,2]
[362249172,1748118664236,-420.0,0.00019479,2]
[362249173,1748118664245,-325.98930419,0.00019479,2]
[362249174,1748118664255,-420.0,0.00019479,2]
[362249175,1748118664264,-420.0,0.00019479,2]
[362249176,1748118664273,-420.0,0.00019479,2]
[362249177,1748118664282,-420.0,0.00019479,2]
[362249178,1748118664292,-420.0,0.00019479,2]
[362249179,1748118664302,-420.0,0.00019479,2]
[362249180,1748118664311,-420.0,0.00019479,2]
[362249181,1748118664321,-1391.56,0.00019479,2]
[362249182,1748118664330,-3419.33,0.00019479,2]
[362249183,1748118664340,-1687.17,0.00019479,2]
[362249184,1748118664350,-657.65,0.00019479,2]
[362249185,1748118664360,-420.0,0.00019479,2]
[362249186,1748118664369,-2900.69,0.00019479,2]
[362249187,1748118664379,-1557.24,0.00019479,2]
[362249188,1748118664392,-776.26,0.00019479,2]
[362249189,1748118664401,-2791.24,0.00019479,2]
[362249190,1748118664410,-420.0,0.00019479,2]
[362249191,1748118664419,-420.0,0.00019479,2]
[362249192,1748118664431,-509.92,0.00019479,2]
[362249193,1748118664441,-24076.14,0.00019479,2]
[362249194,1748118664452,-490.8,0.00019479,2]
[362249195,1748118664463,-422.74,0.00019479,2]
[362249196,1748118664472,-584.56,0.00019479,2]
[362249197,1748118664482,-420.0,0.00019479,2]
[362249198,1748118664491,-420.0,0.00019479,2]
[362249199,1748118664501,-2237.13,0.00019479,2]
[362249200,1748118664512,-582.86,0.00019479,2]
[362249201,1748118664521,-407.91746338,0.00019479,2]
[362249202,1748118664531,-420.0,0.00019479,2]
[362249203,1748118664541,-420.0,0.00019479,2]
[362249204,1748118664550,-420.0,0.00019479,2]
[362249205,1748118664560,-179.2,0.00019479,2]
[362249206,1748118664570,-528.97,0.00019479,2]
[362249207,1748118664579,-420.0,0.00019479,2]
[362249208,1748118664589,-420.0,0.00019479,2]
[362249209,1748118664598,-454.5,0.00019479,2]
[362249210,1748118664607,-936.99,0.00019479,2]
[362249211,1748118664616,-1509.91,0.00019479,2]
[362249212,1748118664626,-420.0,0.00019479,2]
[362249213,1748118664636,-603.47,0.00019479,2]
[362249214,1748118664645,-2982.6,0.00019479,2]
[362249215,1748118664654,-1068.59,0.00019479,2]
[362249216,1748118664664,-420.0,0.00019479,2]
[362249217,1748118664673,-2313.94,0.00019479,2]
[362249218,1748118664683,-8772.85,0.00019479,2]
[362249219,1748118664693,-472.48,0.00019479,2]
[362249220,1748118664703,-462.18,0.00019479,2]
[362249221,1748118664712,-547.04,0.00019479,2]
[362249222,1748118664722,-530.53,0.00019479,2]
[362249223,1748118664732,-420.0,0.00019479,2]
[362249224,1748118664742,-846.2,0.00019479,2]
[362249225,1748118664751,-420.0,0.00019479,2]
[362249226,1748118664761,-726.09,0.00019479,2]
[362249227,1748118664771,-420.0,0.00019479,2]
[362249228,1748118664780,-400.0,0.000195,7]
[362249229,1748118664790,-420.0,0.00019506,2]
[362249230,1748118664799,-420.0,0.00019506,2]
[362249231,1748118664808,-420.0,0.00019506,2]
[362249232,1748118664818,-420.0,0.00019506,2]
[362249233,1748118664827,-420.0,0.00019506,2]
[362249234,1748118664836,-420.0,0.00019506,2]
[362249235,1748118664846,-498.47942974,0.00019506,2]
[362249236,1748118664856,-1391.56,0.00019506,2]
[362249237,1748118664865,-3419.33,0.00019506,2]
[362249238,1748118664875,-1687.17,0.00019506,2]
[362249239,1748118664885,-657.65,0.00019506,2]
[362249240,1748118664895,-420.0,0.00019506,2]
[362249241,1748118664904,-2900.69,0.00019506,2]
[362249242,1748118664913,-1557.24,0.00019506,2]
[362249243,1748118664923,-776.26,0.00019506,2]
[362249244,1748118664933,-2791.24,0.00019506,2]
[362249245,1748118664942,-420.0,0.00019506,2]
[362249246,1748118664952,-420.0,0.00019506,2]
[362249247,1748118664962,-509.92,0.00019506,2]
[362249248,1748118664971,-24076.14,0.00019506,2]
[362249249,1748118664981,-490.8,0.00019506,2]
[362249250,1748118664990,-422.74,0.00019506,2]
[362249251,1748118664999,-584.56,0.00019506,2]
[362249252,1748118665009,-420.0,0.00019506,2]
[362249253,1748118665018,-420.0,0.00019506,2]
[362249254,1748118665027,-2237.13,0.00019506,2]
[362249255,1748118665036,-582.86,0.00019506,2]
[362249256,1748118665045,-420.0,0.00019506,2]
[362249257,1748118665054,-420.0,0.00019506,2]
[362249258,1748118665063,-420.0,0.00019506,2]
[362249259,1748118665072,-420.0,0.00019506,2]
[362249260,1748118665081,-420.0,0.00019506,2]
[362249261,1748118665090,-454.5,0.00019506,2]
[362249262,1748118665099,-936.99,0.00019506,2]
[362249263,1748118665108,-1509.91,0.00019506,2]
[362249264,1748118665118,-420.0,0.00019506,2]
[362249265,1748118665127,-603.47,0.00019506,2]
[362249266,1748118665136,-2982.6,0.00019506,2]
[362249267,1748118665145,-1068.59,0.00019506,2]
[362249268,1748118665154,-420.0,0.00019506,2]
[362249269,1748118665164,-2313.94,0.00019506,2]
[362249270,1748118665174,-8772.85,0.00019506,2]
[362249271,1748118665183,-472.48,0.00019506,2]
[362249272,1748118665192,-462.18,0.00019506,2]
[362249273,1748118665202,-547.04,0.00019506,2]
[362249274,1748118665211,-530.53,0.00019506,2]
[362249275,1748118665221,-420.0,0.00019506,2]
[362249276,1748118665231,-846.2,0.00019506,2]
[362249277,1748118665240,-508.97410725,0.00019506,2]
[362249278,1748118665249,-726.09,0.00019506,2]
[362249279,1748118665258,-420.0,0.00019506,2]
[362249280,1748118665267,-420.0,0.00019534,2]
[362249281,1748118665276,-420.0,0.00019534,2]
[362249282,1748118665285,-420.0,0.00019534,2]
[362249283,1748118665294,-420.0,0.00019534,2]
[362249284,1748118665304,-420.0,0.00019534,2]
[362249285,1748118665313,-420.0,0.00019534,2]
[362249286,1748118665322,-1391.56,0.00019534,2]
[362249287,1748118665331,-3419.33,0.00019534,2]
[362249288,1748118665340,-1687.17,0.00019534,2]
[362249289,1748118665350,-657.65,0.00019534,2]
[362249290,1748118665359,-420.0,0.00019534,2]
[362249291,1748118665368,-2900.69,0.00019534,2]
[362249292,1748118665378,-1557.24,0.00019534,2]
[362249293,1748118665391,-776.26,0.00019534,2]
[362249294,1748118665400,-2791.24,0.00019534,2]
[362249295,1748118665409,-420.0,0.00019534,2]
[362249296,1748118665419,-420.0,0.00019534,2]
[362249297,1748118665428,-509.92,0.00019534,2]
[362249298,1748118665438,-24076.14,0.00019534,2]
[362249299,1748118665448,-490.8,0.00019534,2]
[362249300,1748118665458,-422.74,0.00019534,2]
[362249301,1748118665468,-584.56,0.00019534,2]
[362249302,1748118665478,-420.0,0.00019534,2]
[362249303,1748118665487,-420.0,0.00019534,2]
[362249304,1748118665496,-2237.13,0.00019534,2]
[362249305,1748118665506,-582.86,0.00019534,2]
[362249306,1748118665515,-313.478531,0.00019534,2]
[362249307,1748118665524,-420.0,0.00019534,2]
[362249308,1748118665534,-420.0,0.00019534,2]
[362249309,1748118665543,-420.0,0.00019534,2]
[362249310,1748118665553,-420.0,0.00019534,2]
[362249311,1748118665562,-454.5,0.00019534,2]
[362249312,1748118665571,-936.99,0.00019534,2]
[362249313,1748118665580,-1509.91,0.00019534,2]
[362249314,1748118665590,-420.0,0.00019534,2]
[362249315,1748118665599,-603.47,0.00019534,2]
[362249316,1748118665608,-2982.6,0.00019534,2]
[362249317,1748118665617,-1068.59,0.00019534,2]
[362249318,1748118665627,-420.0,0.00019534,2]
[362249319,1748118665637,-2313.94,0.00019534,2]
[362249320,1748118665646,-8772.85,0.00019534,2]
[362249321,1748118665655,-472.48,0.00019534,2]
[362249322,1748118665665,-462.18,0.00019534,2]
[362249323,1748118665674,-547.04,0.00019534,2]
[362249324,1748118665684,-530.53,0.00019534,2]
[362249325,1748118665693,-420.0,0.00019534,2]
[362249326,1748118665704,-846.2,0.00019534,2]
[362249327,1748118665714,-726.09,0.00019534,2]
[362249328,1748118665723,-420.0,0.00019534,2]
[362249329,1748118665732,-5385.6209468,0.00019535,2]
[362249330,1748118665742,-5217.68010498,0.00019535,2]
[362249331,1748118665751,-252.0,0.00019535,2]
[362249332,1748118665761,-420.0,0.00019561,2]
[362249333,1748118665771,-420.0,0.00019561,2]
[362249334,1748118665780,-420.0,0.00019561,2]
[362249335,1748118665789,-420.0,0.00019561,2]
[362249336,1748118665798,-420.0,0.00019561,2]
[362249337,1748118665807,-502.3,0.00019561,2]
[362249338,1748118665817,-1391.56,0.00019561,2]
[362249339,1748118665827,-3419.33,0.00019561,2]
[362249340,1748118665836,-1687.17,0.00019561,2]
[362249341,1748118665846,-657.65,0.00019561,2]
[362249342,1748118665855,-420.0,0.00019561,2]
[362249343,1748118665865,-2900.69,0.00019561,2]
[362249344,1748118665874,-1557.24,0.00019561,2]
[362249345,1748118665884,-776.26,0.00019561,2]
[362249346,1748118665893,-2791.24,0.00019561,2]
[362249347,1748118665903,-420.0,0.00019561,2]
[362249348,1748118665913,-420.0,0.00019561,2]
[362249349,1748118665923,-509.92,0.00019561,2]
[362249350,1748118665932,-24076.14,0.00019561,2]
[362249351,1748118665942,-490.8,0.00019561,2]
[362249352,1748118665953,-422.74,0.00019561,2]
[362249353,1748118665962,-584.56,0.00019561,2]
[362249354,1748118665971,-420.0,0.00019561,2]
[362249355,1748118665980,-420.0,0.00019561,2]
[362249356,1748118665989,-2237.13,0.00019561,2]
[362249357,1748118665999,-582.86,0.00019561,2]
[362249358,1748118666008,-420.0,0.00019561,2]
[362249359,1748118666018,-420.0,0.00019561,2]
[362249360,1748118666027,-420.0,0.00019561,2]
[362249361,1748118666036,-420.0,0.00019561,2]
[362249362,1748118666045,-454.5,0.00019561,2]
[362249363,1748118666054,-936.99,0.00019561,2]
[362249364,1748118666064,-1509.91,0.00019561,2]
[362249365,1748118666073,-420.0,0.00019561,2]
[362249366,1748118666083,-603.47,0.00019561,2]
[362249367,1748118666092,-2982.6,0.00019561,2]
[362249368,1748118666101,-1068.59,0.00019561,2]
[362249369,1748118666111,-420.0,0.00019561,2]
[362249370,1748118666120,-2313.94,0.00019561,2]
[362249371,1748118666129,-8772.85,0.00019561,2]
[362249372,1748118666139,-472.48,0.00019561,2]
[362249373,1748118666148,-462.18,0.00019561,2]
[362249374,1748118666158,-547.04,0.00019561,2]
[362249375,1748118666167,-530.53,0.00019561,2]
[362249376,1748118666176,-420.0,0.00019561,2]
[362249377,1748118666186,-846.2,0.00019561,2]
[362249378,1748118666196,-726.09,0.00019561,2]
[362249379,1748118666205,-420.0,0.00019561,2]
[362249380,1748118666214,-158.37012829,0.00019571,2]
[362249381,1748118666223,-150.0,0.00019589,2]
[362249382,1748118666233,-420.0,0.00019589,2]
[362249383,1748118666243,-497.44795006,0.00019589,2]
[362249384,1748118666252,-420.0,0.00019589,2]
[362249385,1748118666261,-420.0,0.00019589,2]
[362249386,1748118666270,-420.0,0.00019589,2]
[362249387,1748118666279,-1391.56,0.00019589,2]
[362249388,1748118666288,-3419.33,0.00019589,2]
[362249389,1748118666298,-1687.17,0.00019589,2]
[362249390,1748118666307,-657.65,0.00019589,2]
[362249391,1748118666316,-420.0,0.00019589,2]
[362249392,1748118666325,-2900.69,0.00019589,2]
[362249393,1748118666334,-1557.24,0.00019589,2]
[362249394,1748118666343,-776.26,0.00019589,2]
[362249395,1748118666354,-2791.24,0.00019589,2]
[362249396,1748118666363,-420.0,0.00019589,2]
[362249397,1748118666372,-201.84,0.00019589,2]
[362249398,1748118666382,-509.92,0.00019589,2]
[362249399,1748118666395,-24076.14,0.00019589,2]
[362249400,1748118666404,-490.8,0.00019589,2]
[362249401,1748118666412,-422.74,0.00019589,2]
[362249402,1748118666422,-584.56,0.00019589,2]
[362249403,1748118666432,-420.0,0.00019589,2]
[362249404,1748118666441,-420.0,0.00019589,2]
[362249405,1748118666452,-2237.13,0.00019589,2]
[362249406,1748118666461,-582.86,0.00019589,2]
[362249407,1748118666472,-420.0,0.00019589,2]
[362249408,1748118666481,-420.0,0.00019589,2]
[362249409,1748118666490,-420.0,0.00019589,2]
[362249410,1748118666499,-523.15116056,0.00019589,2]
[362249411,1748118666508,-454.5,0.00019589,2]
[362249412,1748118666518,-936.99,0.00019589,2]
[362249413,1748118666527,-1509.91,0.00019589,2]
[362249414,1748118666536,-420.0,0.00019589,2]
[362249415,1748118666546,-603.47,0.00019589,2]
[362249416,1748118666556,-2982.6,0.00019589,2]
[362249417,1748118666565,-1068.59,0.00019589,2]
[362249418,1748118666575,-420.0,0.00019589,2]
[362249419,1748118666585,-2313.94,0.00019589,2]
[362249420,1748118666596,-8772.85,0.00019589,2]
[362249421,1748118666606,-472.48,0.00019589,2]
[362249422,1748118666616,-462.18,0.00019589,2]
[362249423,1748118666627,-547.04,0.00019589,2]
[362249424,1748118666637,-530.53,0.00019589,2]
[362249425,1748118666646,-420.0,0.00019589,2]
[362249426,1748118666656,-846.2,0.00019589,2]
[362249427,1748118666666,-726.09,0.00019589,2]
[362249428,1748118666675,-518.18650171,0.00019589,2]
[362249429,1748118666685,-315.44413,0.00019599,2]
[362249430,1748118666695,-400.0,0.000196,7]
[362249431,1748118666707,-420.0,0.00019616,2]
[362249432,1748118666716,-546.57,0.00019616,2]
[362249433,1748118666727,-420.0,0.00019616,2]
[362249434,1748118666736,-420.0,0.00019616,2]
[362249435,1748118666746,-1391.56,0.00019616,2]
[362249436,1748118666756,-3419.33,0.00019616,2]
[362249437,1748118666767,-1687.17,0.00019616,2]
[362249438,1748118666776,-657.65,0.00019616,2]
[362249439,1748118666786,-420.0,0.00019616,2]
[362249440,1748118666796,-2900.69,0.00019616,2]
[362249441,1748118666806,-1557.24,0.00019616,2]
[362249442,1748118666815,-776.26,0.00019616,2]
[362249443,1748118666825,-2791.24,0.00019616,2]
[362249444,1748118666835,-420.0,0.00019616,2]
[362249445,1748118666844,-509.92,0.00019616,2]
[362249446,1748118666854,-24076.14,0.00019616,2]
[362249447,1748118666864,-490.8,0.00019616,2]
[362249448,1748118666874,-422.74,0.00019616,2]
[362249449,1748118666884,-584.56,0.00019616,2]
[362249450,1748118666893,-420.0,0.00019616,2]
[362249451,1748118666904,-420.0,0.00019616,2]
[362249452,1748118666914,-2237.13,0.00019616,2]
[362249453,1748118666924,-582.86,0.00019616,2]
[362249454,1748118666933,-420.0,0.00019616,2]
[362249455,1748118666943,-420.0,0.00019616,2]
[362249456,1748118666954,-420.0,0.00019616,2]
[362249457,1748118666965,-454.5,0.00019616,2]
[362249458,1748118666975,-936.99,0.00019616,2]
[362249459,1748118666985,-1509.91,0.00019616,2]
[362249460,1748118666995,-420.0,0.00019616,2]
[362249461,1748118667005,-603.47,0.00019616,2]
[362249462,1748118667016,-2982.6,0.00019616,2]
[362249463,1748118667026,-1068.59,0.00019616,2]
[362249464,1748118667036,-420.0,0.00019616,2]
[362249465,1748118667047,-2313.94,0.00019616,2]
[362249466,1748118667056,-8772.85,0.00019616,2]
[362249467,1748118667067,-472.48,0.00019616,2]
[362249468,1748118667077,-547.04,0.00019616,2]
[362249469,1748118667087,-462.18,0.00019616,2]
[362249470,1748118667097,-530.53,0.00019616,2]
[362249471,1748118667107,-420.0,0.00019616,2]
[362249472,1748118667118,-846.2,0.00019616,2]
[362249473,1748118667129,-726.09,0.00019616,2]
[362249474,1748118667140,-5385.6209468,0.00019626,2]
[362249475,1748118667151,-5217.68010498,0.00019626,2]
[362249476,1748118667162,-200.0,0.00019636,2]
[362249477,1748118667171,-420.0,0.00019643,2]
[362249478,1748118667181,-420.0,0.00019643,2]
[362249479,1748118667191,-1391.56,0.00019643,2]
[362249480,1748118667200,-3419.33,0.00019643,2]
[362249481,1748118667210,-1687.17,0.00019643,2]
[362249482,1748118667220,-657.65,0.00019643,2]
[362249483,1748118667229,-298.45,0.00019643,2]
[362249484,1748118667239,-2900.69,0.00019643,2]
[362249485,1748118667249,-1557.24,0.00019643,2]
[362249486,1748118667258,-776.26,0.00019643,2]
[362249487,1748118667268,-2791.24,0.00019643,2]
[362249488,1748118667277,-420.0,0.00019643,2]
[362249489,1748118667287,-509.92,0.00019643,2]
[362249490,1748118667297,-24076.14,0.00019643,2]
[362249491,1748118667307,-490.8,0.00019643,2]
[362249492,1748118667316,-422.74,0.00019643,2]
[362249493,1748118667326,-584.56,0.00019643,2]
[362249494,1748118667335,-420.0,0.00019643,2]
[362249495,1748118667345,-420.0,0.00019643,2]
[362249496,1748118667355,-2237.13,0.00019643,2]
[362249497,1748118667365,-582.86,0.00019643,2]
[362249498,1748118667374,-420.0,0.00019643,2]
[362249499,1748118667385,-420.0,0.00019643,2]
[362249500,1748118667396,-420.0,0.00019643,2]
[362249501,1748118667405,-454.5,0.00019643,2]
[362249502,1748118667415,-936.99,0.00019643,2]
[362249503,1748118667425,-1509.91,0.00019643,2]
[362249504,1748118667435,-420.0,0.00019643,2]
[362249505,1748118667444,-603.47,0.00019643,2]
[362249506,1748118667454,-2982.6,0.00019643,2]
[362249507,1748118667465,-1068.59,0.00019643,2]
[362249508,1748118667475,-420.0,0.00019643,2]
[362249509,1748118667485,-2313.94,0.00019643,2]
[362249510,1748118667494,-8772.85,0.00019643,2]
[362249511,1748118667503,-472.48,0.00019643,2]
[362249512,1748118667513,-547.04,0.00019643,2]
[362249513,1748118667522,-462.18,0.00019643,2]
[362249514,1748118667532,-530.53,0.00019643,2]
[362249515,1748118667542,-420.0,0.00019643,2]
[362249516,1748118667552,-846.2,0.00019643,2]
[362249517,1748118667561,-726.09,0.00019643,2]
[362249518,1748118667572,-326.06,0.00019671,2]
[362249519,1748118667581,-420.0,0.00019671,2]
[362249520,1748118667591,-1391.56,0.00019671,2]
[362249521,1748118667600,-3419.33,0.00019671,2]
[362249522,1748118667610,-1687.17,0.00019671,2]
[362249523,1748118667619,-657.65,0.00019671,2]
[362249524,1748118667628,-2900.69,0.00019671,2]
[362249525,1748118667637,-1557.24,0.00019671,2]
[362249526,1748118667647,-776.26,0.00019671,2]
[362249527,1748118667656,-2791.24,0.00019671,2]
[362249528,1748118667665,-281.79,0.00019671,2]
[362249529,1748118667675,-509.92,0.00019671,2]
[362249530,1748118667685,-24076.14,0.00019671,2]
[362249531,1748118667695,-490.8,0.00019671,2]
[362249532,1748118667706,-422.74,0.00019671,2]
[362249533,1748118667716,-584.56,0.00019671,2]
[362249534,1748118667725,-459.96,0.00019671,2]
[362249535,1748118667735,-420.0,0.00019671,2]
[362249536,1748118667746,-2237.13,0.00019671,2]
[362249537,1748118667757,-582.86,0.00019671,2]
[362249538,1748118667767,-420.0,0.00019671,2]
[362249539,1748118667777,-153.03714386,0.00019671,2]
[362249540,1748118667787,-420.0,0.00019671,2]
[362249541,1748118667796,-454.5,0.00019671,2]
[362249542,1748118667806,-936.99,0.00019671,2]
[362249543,1748118667817,-1509.91,0.00019671,2]
[362249544,1748118667827,-540.73113365,0.00019671,2]
[362249545,1748118667836,-603.47,0.00019671,2]
[362249546,1748118667846,-2982.6,0.00019671,2]
[362249547,1748118667856,-1068.59,0.00019671,2]
[362249548,1748118667866,-420.0,0.00019671,2]
[362249549,1748118667875,-2313.94,0.00019671,2]
[362249550,1748118667885,-8772.85,0.00019671,2]
[362249551,1748118667895,-472.48,0.00019671,2]
[362249552,1748118667905,-547.04,0.00019671,2]
[362249553,1748118667915,-462.18,0.00019671,2]
[362249554,1748118667925,-530.53,0.00019671,2]
[362249555,1748118667935,-264.9127669,0.00019671,2]
[362249556,1748118667945,-846.2,0.00019671,2]
[362249557,1748118667955,-726.09,0.00019671,2]
[362249558,1748118667965,-420.0,0.00019698,2]
[362249559,1748118667974,-1391.56,0.00019698,2]
[362249560,1748118667984,-3419.33,0.00019698,2]
[362249561,1748118667994,-1687.17,0.00019698,2]
[362249562,1748118668003,-657.65,0.00019698,2]
[362249563,1748118668013,-2900.69,0.00019698,2]
[362249564,1748118668022,-1557.24,0.00019698,2]
[362249565,1748118668032,-776.26,0.00019698,2]
[362249566,1748118668042,-2791.24,0.00019698,2]
[362249567,1748118668052,-509.92,0.00019698,2]
[362249568,1748118668061,-24076.14,0.00019698,2]
[362249569,1748118668071,-490.8,0.00019698,2]
[362249570,1748118668081,-422.74,0.00019698,2]
[362249571,1748118668090,-584.56,0.00019698,2]
[362249572,1748118668100,-420.0,0.00019698,2]
[362249573,1748118668110,-2237.13,0.00019698,2]
[362249574,1748118668120,-582.86,0.00019698,2]
[362249575,1748118668129,-466.52494792,0.00019698,2]
[362249576,1748118668139,-454.5,0.00019698,2]
[362249577,1748118668150,-936.99,0.00019698,2]
[362249578,1748118668160,-1509.91,0.00019698,2]
[362249579,1748118668169,-603.47,0.00019698,2]
[362249580,1748118668179,-2982.6,0.00019698,2]
[362249581,1748118668188,-1068.59,0.00019698,2]
[362249582,1748118668198,-374.51085222,0.00019698,2]
[362249583,1748118668208,-2313.94,0.00019698,2]
[362249584,1748118668218,-8772.85,0.00019698,2]
[362249585,1748118668227,-472.48,0.00019698,2]
[362249586,1748118668237,-547.04,0.00019698,2]
[362249587,1748118668246,-462.18,0.00019698,2]
[362249588,1748118668261,-530.53,0.00019698,2]
[362249589,1748118668271,-846.2,0.00019698,2]
[362249590,1748118668281,-726.09,0.00019698,2]
[362249591,1748118668290,-72682.39514538,0.000197,2]
[362249592,1748118668300,-400.0,0.000197,7]
[362249593,1748118668310,-156.0,0.00019714,2]
[362249594,1748118668320,-743.78759815,0.00019714,2]
[362249595,1748118668329,-5385.6209468,0.00019717,2]
[362249596,1748118668339,-5217.68010498,0.00019717,2]
[362249597,1748118668349,-1000.0,0.00019721,2]
[362249598,1748118668359,-1000.0,0.00019721,2]
[362249599,1748118668368,-420.0,0.00019726,2]
[362249600,1748118668378,-1391.56,0.00019726,2]
[362249601,1748118668391,-3419.33,0.00019726,2]
[362249602,1748118668400,-1687.17,0.00019726,2]
[362249603,1748118668410,-657.65,0.00019726,2]
[362249604,1748118668419,-2900.69,0.00019726,2]
[362249605,1748118668429,-1557.24,0.00019726,2]
[362249606,1748118668438,-776.26,0.00019726,2]
[362249607,1748118668448,-2791.24,0.00019726,2]
[362249608,1748118668459,-509.92,0.00019726,2]
[362249609,1748118668469,-24076.14,0.00019726,2]
[362249610,1748118668478,-490.8,0.00019726,2]
[362249611,1748118668488,-422.74,0.00019726,2]
[362249612,1748118668497,-584.56,0.00019726,2]
[362249613,1748118668507,-420.0,0.00019726,2]
[362249614,1748118668516,-2237.13,0.00019726,2]
[362249615,1748118668526,-582.86,0.00019726,2]
[362249616,1748118668535,-454.5,0.00019726,2]
[362249617,1748118668545,-936.99,0.00019726,2]
[362249618,1748118668556,-1509.91,0.00019726,2]
[362249619,1748118668565,-603.47,0.00019726,2]
[362249620,1748118668575,-2982.6,0.00019726,2]
[362249621,1748118668584,-1068.59,0.00019726,2]
[362249622,1748118668594,-2313.94,0.00019726,2]
[362249623,1748118668603,-8772.85,0.00019726,2]
[362249624,1748118668612,-472.48,0.00019726,2]
[362249625,1748118668621,-547.04,0.00019726,2]
[362249626,1748118668631,-462.18,0.00019726,2]
[362249627,1748118668641,-530.53,0.00019726,2]
[362249628,1748118668651,-846.2,0.00019726,2]
[362249629,1748118668660,-726.09,0.00019726,2]
[362249630,1748118668670,-150.43,0.00019726,2]
[362249631,1748118668680,-150.43,0.00019726,2]
[362249632,1748118668690,-150.43,0.00019726,2]
[362249633,1748118668700,-158.37012829,0.00019736,2]
[362249634,1748118668710,-922.708,0.00019748,2]
[362249635,1748118668720,-6916.0,0.00019748,2]
[362249636,1748118668730,-937.0,0.00019748,2]
[362249637,1748118668740,-4054.0,0.00019748,2]
[362249638,1748118668750,-881.0,0.00019748,2]
[362249639,1748118668760,-379.59,0.00019753,2]
[362249640,1748118668770,-1391.56,0.00019753,2]
[362249641,1748118668780,-3419.33,0.00019753,2]